[Event "Early-Titled-Tuesday-Blitz-February-06-2024"]
[Site "Chess.com"]
[Date "2024.02.06"]
[Round "2"]
[White "DevikBronstein"]
[Black "Bilan_Danila"]
[Result "1-0"]
[WhiteElo "2913"]
[BlackElo "2613"]
[TimeControl "180+1"]
[EndTime "8:16:03 PST"]
[Termination "DevikBronstein won by resignation"]

1. Nf3 {[%clk 0:03:00.9]} 1... d5 {[%clk 0:02:59.7]} 2. g3 {[%clk 0:02:59.9]}
2... Nf6 {[%clk 0:02:59.6]} 3. Bg2 {[%clk 0:02:59.2]} 3... Bf5 {[%clk
0:02:59.5]} 4. O-O {[%clk 0:02:55.1]} 4... e6 {[%clk 0:02:59.3]} 5. d3 {[%clk
0:02:51.9]} 5... h6 {[%clk 0:02:59.3]} 6. c4 {[%clk 0:02:51.2]} 6... c6 {[%clk
0:02:59.1]} 7. Qb3 {[%clk 0:02:49.1]} 7... Qb6 {[%clk 0:02:49.1]} 8. Qc2 {[%clk
0:02:46.5]} 8... Nbd7 {[%clk 0:02:43.5]} 9. cxd5 {[%clk 0:02:44.8]} 9... cxd5
{[%clk 0:02:22.6]} 10. Be3 {[%clk 0:02:43.8]} 10... Bc5 {[%clk 0:02:20.8]} 11.
Bxc5 {[%clk 0:02:42.8]} 11... Qxc5 {[%clk 0:02:19.6]} 12. Qxc5 {[%clk
0:02:42.5]} 12... Nxc5 {[%clk 0:02:20.5]} 13. Rc1 {[%clk 0:02:42.7]} 13... Na6
{[%clk 0:02:09.3]} 14. Nd4 {[%clk 0:02:40.2]} 14... Bg6 {[%clk 0:02:06.7]} 15.
Nd2 {[%clk 0:02:33.7]} 15... Ke7 {[%clk 0:01:38.7]} 16. N2b3 {[%clk 0:02:16.9]}
16... Rhc8 {[%clk 0:01:16.7]} 17. Na5 {[%clk 0:01:50.4]} 17... b6 {[%clk
0:01:01.8]} 18. Nac6+ {[%clk 0:01:33.3]} 18... Kd6 {[%clk 0:00:58.7]} 19. Nb5+
{[%clk 0:01:32.2]} 19... Kd7 {[%clk 0:00:52.2]} 20. Nbxa7 {[%clk 0:01:27.4]}
20... Nc7 {[%clk 0:00:31.4]} 21. Nxc8 {[%clk 0:01:25.2]} 21... Rxc8 {[%clk
0:00:30.9]} 22. Ne5+ {[%clk 0:01:25.4]} 22... Kd6 {[%clk 0:00:30.8]} 23. f4
{[%clk 0:01:15.6]} 23... Nd7 {[%clk 0:00:19.5]} 24. Rc6+ {[%clk 0:01:15]} 24...
Ke7 {[%clk 0:00:19.6]} 25. Rac1 {[%clk 0:01:15.3]} 1-0

[Event "Early-Titled-Tuesday-Blitz-February-06-2024"]
[Site "Chess.com"]
[Date "2024.02.06"]
[Round "2"]
[White "ChessFighter1975"]
[Black "Capiberibe"]
[Result "1-0"]
[WhiteElo "2428"]
[BlackElo "2087"]
[TimeControl "180+1"]
[EndTime "8:16:03 PST"]
[Termination "ChessFighter1975 won on time"]

1. d4 {[%clk 0:03:00.9]} 1... Nf6 {[%clk 0:01:45.4]} 2. c4 {[%clk 0:03:01]} 2...
e6 {[%clk 0:01:42.4]} 3. Bg5 {[%clk 0:02:59.7]} 3... Bb4+ {[%clk 0:01:33.8]} 4.
Nd2 {[%clk 0:03:00]} 4... O-O {[%clk 0:01:31.3]} 5. Nf3 {[%clk 0:02:57.8]} 5...
b6 {[%clk 0:01:29]} 6. a3 {[%clk 0:02:57.3]} 6... Be7 {[%clk 0:01:28.6]} 7. e4
{[%clk 0:02:54.6]} 7... d5 {[%clk 0:01:28.4]} 8. cxd5 {[%clk 0:02:53.4]} 8...
exd5 {[%clk 0:01:27.3]} 9. e5 {[%clk 0:02:53.9]} 9... Ne4 {[%clk 0:01:27]} 10.
Bf4 {[%clk 0:02:47.7]} 10... c5 {[%clk 0:01:18.8]} 11. Bd3 {[%clk 0:02:47.9]}
11... f5 {[%clk 0:00:59.6]} 12. exf6 {[%clk 0:02:34.7]} 12... Nxf6 {[%clk
0:00:56.9]} 13. O-O {[%clk 0:02:33.5]} 13... Nc6 {[%clk 0:00:50.4]} 14. Re1
{[%clk 0:02:29.6]} 14... cxd4 {[%clk 0:00:43.7]} 15. Rc1 {[%clk 0:02:24.8]}
15... Bb7 {[%clk 0:00:41.6]} 16. b4 {[%clk 0:02:21.6]} 16... Rc8 {[%clk
0:00:39.2]} 17. Ng5 {[%clk 0:02:21.5]} 17... Ne4 {[%clk 0:00:27.6]} 18. Ne6
{[%clk 0:02:18.4]} 18... Qd7 {[%clk 0:00:22.3]} 19. Nxf8 {[%clk 0:02:13]} 19...
Rxf8 {[%clk 0:00:20.9]} 20. Bg3 {[%clk 0:02:09.9]} 20... Nxg3 {[%clk 0:00:17.3]}
21. hxg3 {[%clk 0:02:07.2]} 21... Bf6 {[%clk 0:00:16.1]} 22. Nf3 {[%clk
0:01:34.4]} 22... Qf7 {[%clk 0:00:11.4]} 23. Bb5 {[%clk 0:01:31.1]} 23... Ne7
{[%clk 0:00:08.4]} 24. Rc7 {[%clk 0:01:29.6]} 24... Ba8 {[%clk 0:00:05.3]} 25.
Rxa7 {[%clk 0:01:22.5]} 1-0

[Event "Early-Titled-Tuesday-Blitz-February-06-2024"]
[Site "Chess.com"]
[Date "2024.02.06"]
[Round "2"]
[White "EscalofriantePreparacion"]
[Black "edgarhay012"]
[Result "0-1"]
[WhiteElo "2595"]
[BlackElo "2444"]
[TimeControl "180+1"]
[EndTime "8:16:12 PST"]
[Termination "edgarhay012 won by resignation"]

1. Nf3 {[%clk 0:03:00.9]} 1... Nf6 {[%clk 0:02:59]} 2. c4 {[%clk 0:02:58.2]}
2... e6 {[%clk 0:02:59]} 3. g3 {[%clk 0:02:57.6]} 3... b6 {[%clk 0:02:57.3]} 4.
Bg2 {[%clk 0:02:57.5]} 4... Bb7 {[%clk 0:02:57.8]} 5. O-O {[%clk 0:02:57.6]}
5... Be7 {[%clk 0:02:58.3]} 6. Nc3 {[%clk 0:02:57]} 6... O-O {[%clk 0:02:58]} 7.
d4 {[%clk 0:02:56.1]} 7... d5 {[%clk 0:02:57.3]} 8. Ne5 {[%clk 0:02:54.9]} 8...
Nbd7 {[%clk 0:02:55.9]} 9. cxd5 {[%clk 0:02:26.9]} 9... Nxd5 {[%clk 0:02:51.7]}
10. Nxd5 {[%clk 0:02:24.7]} 10... exd5 {[%clk 0:02:51.9]} 11. Bf4 {[%clk
0:02:22.6]} 11... c5 {[%clk 0:02:48.2]} 12. Rc1 {[%clk 0:02:21.2]} 12... Nxe5
{[%clk 0:02:38.7]} 13. Bxe5 {[%clk 0:02:20.9]} 13... Qd7 {[%clk 0:02:32.1]} 14.
dxc5 {[%clk 0:01:53.2]} 14... bxc5 {[%clk 0:02:29.4]} 15. Qd2 {[%clk 0:01:52.5]}
15... Rfd8 {[%clk 0:02:26.8]} 16. Rfd1 {[%clk 0:01:52.3]} 16... Qe6 {[%clk
0:02:21.9]} 17. Bc3 {[%clk 0:01:49.1]} 17... Rac8 {[%clk 0:02:20.1]} 18. Ba5
{[%clk 0:01:47.6]} 18... Rd6 {[%clk 0:02:17.6]} 19. e3 {[%clk 0:01:44]} 19...
Ba8 {[%clk 0:02:12.2]} 20. b3 {[%clk 0:01:36.4]} 20... Bf6 {[%clk 0:02:10.9]}
21. Qe1 {[%clk 0:01:26.7]} 21... h5 {[%clk 0:02:10.2]} 22. Qf1 {[%clk
0:01:22.7]} 22... g5 {[%clk 0:01:52.5]} 23. Qe2 {[%clk 0:01:18.2]} 23... g4
{[%clk 0:01:49.9]} 24. Qe1 {[%clk 0:01:10.4]} 24... h4 {[%clk 0:01:44.8]} 25.
Bc3 {[%clk 0:01:08.9]} 25... h3 {[%clk 0:01:35.7]} 26. Bh1 {[%clk 0:01:02]}
26... d4 {[%clk 0:01:11.4]} 27. Bxa8 {[%clk 0:00:58.8]} 27... Rxa8 {[%clk
0:01:06.2]} 28. exd4 {[%clk 0:00:56.6]} 28... Qd5 {[%clk 0:01:04.4]} 29. Qf1
{[%clk 0:00:54]} 29... cxd4 {[%clk 0:01:04.4]} 30. Bd2 {[%clk 0:00:50.3]} 30...
Re8 {[%clk 0:01:01.7]} 31. Bf4 {[%clk 0:00:45.4]} 31... Rde6 {[%clk 0:01:01]}
32. Rd3 {[%clk 0:00:39.5]} 32... Re1 {[%clk 0:00:58.5]} 0-1

[Event "Early-Titled-Tuesday-Blitz-February-06-2024"]
[Site "Chess.com"]
[Date "2024.02.06"]
[Round "2"]
[White "skkeyan1309"]
[Black "UK_23"]
[Result "1-0"]
[WhiteElo "2719"]
[BlackElo "2418"]
[TimeControl "180+1"]
[EndTime "8:16:13 PST"]
[Termination "skkeyan1309 won by resignation"]

1. Nf3 {[%clk 0:03:00.9]} 1... d5 {[%clk 0:02:55.6]} 2. b3 {[%clk 0:03:00.8]}
2... c6 {[%clk 0:02:51.9]} 3. Bb2 {[%clk 0:03:00.7]} 3... Bf5 {[%clk 0:02:52]}
4. d3 {[%clk 0:02:59.8]} 4... e6 {[%clk 0:02:52.3]} 5. Nbd2 {[%clk 0:03:00]}
5... Nf6 {[%clk 0:02:52.1]} 6. g3 {[%clk 0:03:00.2]} 6... h6 {[%clk 0:02:52.1]}
7. Bg2 {[%clk 0:03:00.6]} 7... Bh7 {[%clk 0:02:52.4]} 8. O-O {[%clk 0:02:59.6]}
8... Be7 {[%clk 0:02:52.9]} 9. Ne5 {[%clk 0:02:59.7]} 9... O-O {[%clk
0:02:52.5]} 10. e4 {[%clk 0:02:59.9]} 10... a5 {[%clk 0:02:50.5]} 11. a3 {[%clk
0:02:58.3]} 11... Nfd7 {[%clk 0:02:42.1]} 12. Ng4 {[%clk 0:02:53.6]} 12... Na6
{[%clk 0:02:33.1]} 13. f4 {[%clk 0:02:52.7]} 13... Qb6+ {[%clk 0:02:30.6]} 14.
Kh1 {[%clk 0:02:51.3]} 14... f5 {[%clk 0:02:26.9]} 15. exf5 {[%clk 0:02:43.3]}
15... exf5 {[%clk 0:02:27.2]} 16. Ne5 {[%clk 0:02:36.8]} 16... Nxe5 {[%clk
0:02:23.9]} 17. Bxe5 {[%clk 0:02:37.7]} 17... Bg6 {[%clk 0:02:21.6]} 18. Re1
{[%clk 0:02:31.1]} 18... Rfe8 {[%clk 0:02:21.8]} 19. d4 {[%clk 0:02:12.8]} 19...
Bf8 {[%clk 0:02:15.1]} 20. c3 {[%clk 0:02:12.3]} 20... Nc7 {[%clk 0:02:14.8]}
21. Nf3 {[%clk 0:02:05.8]} 21... Nb5 {[%clk 0:02:01.2]} 22. Qc1 {[%clk
0:02:04.7]} 22... Nd6 {[%clk 0:01:57.3]} 23. Bxd6 {[%clk 0:02:01.7]} 23... Bxd6
{[%clk 0:01:58.2]} 24. Ne5 {[%clk 0:02:01.3]} 24... Bh7 {[%clk 0:01:53.7]} 25.
Qc2 {[%clk 0:01:51.1]} 25... Re7 {[%clk 0:01:52.8]} 26. b4 {[%clk 0:01:28.6]}
26... a4 {[%clk 0:01:49.6]} 27. Bh3 {[%clk 0:01:24.4]} 27... g6 {[%clk
0:01:45.4]} 28. Rad1 {[%clk 0:01:20.2]} 28... h5 {[%clk 0:01:43.8]} 29. Bg2
{[%clk 0:01:14]} 29... Qc7 {[%clk 0:01:43.2]} 30. h4 {[%clk 0:01:13.9]} 30... b5
{[%clk 0:01:42.7]} 31. Qa2 {[%clk 0:01:12.8]} 31... Kg7 {[%clk 0:01:41.4]} 32.
Re2 {[%clk 0:01:04]} 32... Rae8 {[%clk 0:01:40.6]} 33. Rde1 {[%clk 0:01:04]}
33... Bg8 {[%clk 0:01:41.2]} 34. Bh3 {[%clk 0:01:00]} 34... Bh7 {[%clk 0:01:40]}
35. Qc2 {[%clk 0:00:59.6]} 35... Qc8 {[%clk 0:01:35.8]} 36. Bg2 {[%clk
0:00:52.1]} 36... Qc7 {[%clk 0:01:34.9]} 37. Bf3 {[%clk 0:00:52]} 37... Qc8
{[%clk 0:01:34.6]} 38. Kg2 {[%clk 0:00:50.5]} 38... Qc7 {[%clk 0:01:34.8]} 39.
Nd3 {[%clk 0:00:50.2]} 39... Rxe2+ {[%clk 0:01:28.8]} 40. Rxe2 {[%clk
0:00:51.1]} 40... Rxe2+ {[%clk 0:01:29.3]} 41. Qxe2 {[%clk 0:00:52]} 41... Qe7
{[%clk 0:01:29.4]} 42. Qxe7+ {[%clk 0:00:47.8]} 42... Bxe7 {[%clk 0:01:30.3]}
43. Ne5 {[%clk 0:00:48.1]} 43... Bg8 {[%clk 0:01:23.3]} 44. Nxc6 {[%clk
0:00:48.1]} 44... Bd6 {[%clk 0:01:24]} 45. Na7 {[%clk 0:00:48.5]} 1-0

[Event "Early-Titled-Tuesday-Blitz-February-06-2024"]
[Site "Chess.com"]
[Date "2024.02.06"]
[Round "2"]
[White "Sattarov_Bobur"]
[Black "Brahianzevich"]
[Result "1-0"]
[WhiteElo "2754"]
[BlackElo "2445"]
[TimeControl "180+1"]
[EndTime "8:16:16 PST"]
[Termination "Sattarov_Bobur won by resignation"]

1. e4 {[%clk 0:02:57.8]} 1... c5 {[%clk 0:02:59.9]} 2. Nf3 {[%clk 0:02:57.1]}
2... d6 {[%clk 0:03:00.4]} 3. d4 {[%clk 0:02:57.2]} 3... cxd4 {[%clk 0:03:01.3]}
4. Nxd4 {[%clk 0:02:57.9]} 4... Nf6 {[%clk 0:03:01.1]} 5. f3 {[%clk 0:02:58.5]}
5... a6 {[%clk 0:02:58.1]} 6. c4 {[%clk 0:02:58]} 6... e6 {[%clk 0:02:53.9]} 7.
Nc3 {[%clk 0:02:58.4]} 7... Be7 {[%clk 0:02:53.5]} 8. Be3 {[%clk 0:02:58.9]}
8... O-O {[%clk 0:02:53.1]} 9. Be2 {[%clk 0:02:59.5]} 9... b6 {[%clk 0:02:53.2]}
10. a4 {[%clk 0:02:58.7]} 10... Bb7 {[%clk 0:02:50.8]} 11. a5 {[%clk 0:02:59]}
11... bxa5 {[%clk 0:02:41.2]} 12. Nb3 {[%clk 0:02:59.2]} 12... Nc6 {[%clk
0:02:26]} 13. O-O {[%clk 0:02:53.7]} 13... Qc7 {[%clk 0:02:25.9]} 14. Na4 {[%clk
0:02:50.6]} 14... Nd7 {[%clk 0:02:24.3]} 15. Rc1 {[%clk 0:02:41]} 15... Nb4
{[%clk 0:02:00.5]} 16. c5 {[%clk 0:02:23.6]} 16... d5 {[%clk 0:01:59.2]} 17. Nb6
{[%clk 0:02:12.5]} 17... Nxb6 {[%clk 0:01:47.6]} 18. cxb6 {[%clk 0:02:13.4]}
18... Qe5 {[%clk 0:01:41.8]} 19. Bd4 {[%clk 0:01:42.4]} 19... Qb8 {[%clk
0:01:05.3]} 20. e5 {[%clk 0:00:49.1]} 20... a4 {[%clk 0:00:46]} 21. Na5 {[%clk
0:00:47.7]} 21... Rc8 {[%clk 0:00:36.7]} 22. Qxa4 {[%clk 0:00:46.1]} 22... Bg5
{[%clk 0:00:30.1]} 23. Rxc8+ {[%clk 0:00:41.8]} 23... Qxc8 {[%clk 0:00:30]} 24.
Qxb4 {[%clk 0:00:42.2]} 1-0

[Event "Early-Titled-Tuesday-Blitz-February-06-2024"]
[Site "Chess.com"]
[Date "2024.02.06"]
[Round "2"]
[White "Cheer_Down"]
[Black "carloseduar100"]
[Result "1-0"]
[WhiteElo "2510"]
[BlackElo "2313"]
[TimeControl "180+1"]
[EndTime "8:16:16 PST"]
[Termination "Cheer_Down won by resignation"]

1. d4 {[%clk 0:02:47]} 1... d5 {[%clk 0:02:58.2]} 2. Nf3 {[%clk 0:02:45.7]} 2...
e6 {[%clk 0:02:58.3]} 3. c4 {[%clk 0:02:40.9]} 3... Nf6 {[%clk 0:02:58.4]} 4.
Nc3 {[%clk 0:02:40.4]} 4... c6 {[%clk 0:02:58.2]} 5. Bg5 {[%clk 0:02:38]} 5...
Be7 {[%clk 0:02:58.1]} 6. e3 {[%clk 0:02:37.3]} 6... O-O {[%clk 0:02:57.2]} 7.
Qc2 {[%clk 0:02:32.9]} 7... Nbd7 {[%clk 0:02:57.6]} 8. O-O-O {[%clk 0:02:30.8]}
8... b5 {[%clk 0:02:56.4]} 9. cxb5 {[%clk 0:02:27.6]} 9... cxb5 {[%clk
0:02:56.4]} 10. Bxb5 {[%clk 0:02:27.2]} 10... Bb7 {[%clk 0:02:50.9]} 11. Bd3
{[%clk 0:02:25.6]} 11... Rc8 {[%clk 0:02:46.7]} 12. Kb1 {[%clk 0:02:23.7]} 12...
Ne4 {[%clk 0:02:46.1]} 13. Bxe4 {[%clk 0:02:20]} 13... dxe4 {[%clk 0:02:46.1]}
14. Bxe7 {[%clk 0:02:20.5]} 14... Qxe7 {[%clk 0:02:45.9]} 15. Ne5 {[%clk
0:02:07.4]} 15... Nb6 {[%clk 0:02:30.6]} 16. Qb3 {[%clk 0:01:50.5]} 16... Rfd8
{[%clk 0:02:04.1]} 17. Rc1 {[%clk 0:01:49.9]} 17... f5 {[%clk 0:01:38.1]} 18. g4
{[%clk 0:01:38.6]} 18... Nd5 {[%clk 0:01:38.1]} 19. gxf5 {[%clk 0:01:34.2]}
19... exf5 {[%clk 0:01:38.8]} 20. Rhg1 {[%clk 0:01:33.3]} 20... Kh8 {[%clk
0:01:34.2]} 21. Nxd5 {[%clk 0:01:18.5]} 21... Rxc1+ {[%clk 0:01:29.1]} 22. Rxc1
{[%clk 0:01:17.5]} 22... Bxd5 {[%clk 0:01:30]} 23. Qxd5 {[%clk 0:01:14.5]} 23...
Rxd5 {[%clk 0:00:45.5]} 24. Rc8+ {[%clk 0:01:11.3]} 24... Rd8 {[%clk 0:00:44.2]}
25. Rxd8+ {[%clk 0:01:11.1]} 25... Qxd8 {[%clk 0:00:45.1]} 26. Nf7+ {[%clk
0:01:11.4]} 26... Kg8 {[%clk 0:00:46]} 27. Nxd8 {[%clk 0:01:12]} 27... g5 {[%clk
0:00:46.5]} 28. Kc2 {[%clk 0:01:09.7]} 28... Kg7 {[%clk 0:00:46.9]} 29. Kd2
{[%clk 0:01:09.5]} 29... Kg6 {[%clk 0:00:47.1]} 30. Nc6 {[%clk 0:01:07.5]} 30...
a6 {[%clk 0:00:46.5]} 31. a4 {[%clk 0:01:06.2]} 31... Kh5 {[%clk 0:00:46.6]} 32.
Ne7 {[%clk 0:01:05]} 32... Kg4 {[%clk 0:00:46]} 33. d5 {[%clk 0:01:04.5]} 33...
f4 {[%clk 0:00:45.6]} 34. d6 {[%clk 0:01:04.1]} 1-0

[Event "Early-Titled-Tuesday-Blitz-February-06-2024"]
[Site "Chess.com"]
[Date "2024.02.06"]
[Round "2"]
[White "Problematique_99"]
[Black "C_K_G"]
[Result "1-0"]
[WhiteElo "2435"]
[BlackElo "2119"]
[TimeControl "180+1"]
[EndTime "8:16:19 PST"]
[Termination "Problematique_99 won by resignation"]

1. a3 {[%clk 0:03:00.8]} 1... d5 {[%clk 0:02:58.1]} 2. b4 {[%clk 0:03:01.3]}
2... e6 {[%clk 0:02:57.4]} 3. Bb2 {[%clk 0:03:01.8]} 3... Nf6 {[%clk 0:02:57.4]}
4. g3 {[%clk 0:03:01.7]} 4... Bd6 {[%clk 0:02:56.7]} 5. Bg2 {[%clk 0:03:02.3]}
5... O-O {[%clk 0:02:56.5]} 6. Nf3 {[%clk 0:03:02.7]} 6... Nbd7 {[%clk
0:02:56.3]} 7. O-O {[%clk 0:03:03.2]} 7... b6 {[%clk 0:02:56]} 8. e3 {[%clk
0:03:00.4]} 8... Bb7 {[%clk 0:02:56]} 9. Qe2 {[%clk 0:02:59.6]} 9... c5 {[%clk
0:02:55.1]} 10. d3 {[%clk 0:02:58.2]} 10... Re8 {[%clk 0:02:53.7]} 11. b5 {[%clk
0:02:57.6]} 11... e5 {[%clk 0:02:53.1]} 12. Nh4 {[%clk 0:02:55.6]} 12... e4
{[%clk 0:02:44.7]} 13. Nf5 {[%clk 0:02:54.7]} 13... Bc7 {[%clk 0:02:39.4]} 14.
dxe4 {[%clk 0:02:52.7]} 14... dxe4 {[%clk 0:02:38.9]} 15. Rd1 {[%clk 0:02:51.6]}
15... Qc8 {[%clk 0:02:17.3]} 16. Bh3 {[%clk 0:02:52]} 16... Qb8 {[%clk
0:02:02.4]} 17. Nxg7 {[%clk 0:02:47.8]} 17... Be5 {[%clk 0:01:43.4]} 18. Bxd7
{[%clk 0:02:07]} 18... Bxb2 {[%clk 0:01:34.1]} 19. Nxe8 {[%clk 0:02:03.5]} 19...
Bxa1 {[%clk 0:01:25.1]} 20. Nxf6+ {[%clk 0:01:52.9]} 20... Bxf6 {[%clk
0:01:24.7]} 21. Bf5 {[%clk 0:01:48.2]} 21... Qe5 {[%clk 0:01:00.2]} 22. Qh5
{[%clk 0:01:46.5]} 22... h6 {[%clk 0:01:00]} 23. Rd7 {[%clk 0:01:44.1]} 23...
Bd5 {[%clk 0:00:51.2]} 24. Rxd5 {[%clk 0:01:39]} 24... Qxd5 {[%clk 0:00:38.1]}
25. Bh7+ {[%clk 0:01:38.5]} 25... Kxh7 {[%clk 0:00:38.1]} 26. Qxd5 {[%clk
0:01:39.4]} 26... Rd8 {[%clk 0:00:38.3]} 27. Qxe4+ {[%clk 0:01:39.4]} 27... Kg7
{[%clk 0:00:38.7]} 28. Kg2 {[%clk 0:01:37.6]} 28... h5 {[%clk 0:00:26]} 29. a4
{[%clk 0:01:32.1]} 29... Bb2 {[%clk 0:00:22]} 30. c3 {[%clk 0:01:29.7]} 30...
Rd6 {[%clk 0:00:11]} 31. Qc2 {[%clk 0:01:28.4]} 31... Ba1 {[%clk 0:00:11.6]} 32.
Qa2 {[%clk 0:01:27.9]} 1-0

[Event "Early-Titled-Tuesday-Blitz-February-06-2024"]
[Site "Chess.com"]
[Date "2024.02.06"]
[Round "2"]
[White "KChor05"]
[Black "yosephtaher"]
[Result "0-1"]
[WhiteElo "2600"]
[BlackElo "2887"]
[TimeControl "180+1"]
[EndTime "8:16:20 PST"]
[Termination "yosephtaher won by resignation"]

1. e4 {[%clk 0:02:59.4]} 1... c5 {[%clk 0:02:57.8]} 2. Nf3 {[%clk 0:02:59.2]}
2... g6 {[%clk 0:02:58.1]} 3. d4 {[%clk 0:02:59.4]} 3... cxd4 {[%clk 0:02:59]}
4. Nxd4 {[%clk 0:02:59.7]} 4... Bg7 {[%clk 0:02:59.1]} 5. Nc3 {[%clk 0:03:00]}
5... Nc6 {[%clk 0:02:59.7]} 6. Be3 {[%clk 0:03:00.3]} 6... Nf6 {[%clk 0:03:00]}
7. Bc4 {[%clk 0:03:00.6]} 7... O-O {[%clk 0:03:00.5]} 8. Bb3 {[%clk 0:03:01]}
8... d6 {[%clk 0:03:01.3]} 9. f3 {[%clk 0:03:00.5]} 9... Bd7 {[%clk 0:03:01.8]}
10. Qd2 {[%clk 0:03:01.1]} 10... Nxd4 {[%clk 0:03:02.3]} 11. Bxd4 {[%clk
0:03:02]} 11... b5 {[%clk 0:03:03]} 12. h4 {[%clk 0:03:01.2]} 12... a5 {[%clk
0:03:02.8]} 13. a4 {[%clk 0:03:00.5]} 13... bxa4 {[%clk 0:03:02]} 14. Nxa4
{[%clk 0:03:00.3]} 14... Rb8 {[%clk 0:03:02.4]} 15. h5 {[%clk 0:02:51.8]} 15...
Be6 {[%clk 0:03:02.6]} 16. hxg6 {[%clk 0:02:29]} 16... hxg6 {[%clk 0:03:00.8]}
17. Bxe6 {[%clk 0:01:37.8]} 17... fxe6 {[%clk 0:03:01.7]} 18. Qg5 {[%clk
0:01:38.4]} 18... Kf7 {[%clk 0:03:00.1]} 19. O-O-O {[%clk 0:01:32.6]} 19... Qc7
{[%clk 0:02:57.9]} 20. e5 {[%clk 0:01:26.7]} 20... Rfc8 {[%clk 0:02:46.2]} 21.
Nc3 {[%clk 0:01:26.8]} 21... dxe5 {[%clk 0:02:42]} 22. Bxe5 {[%clk 0:01:25.8]}
22... Qc5 {[%clk 0:02:41.2]} 23. Bxf6 {[%clk 0:01:07.1]} 23... Bxf6 {[%clk
0:02:31.6]} 24. Rh7+ {[%clk 0:01:06.2]} 24... Bg7 {[%clk 0:02:30.7]} 25. Qxc5
{[%clk 0:00:41.1]} 25... Rxc5 {[%clk 0:02:31.6]} 26. Ne4 {[%clk 0:00:41.5]}
26... Rd5 {[%clk 0:02:29.6]} 27. b3 {[%clk 0:00:40]} 27... Rbd8 {[%clk
0:02:24.9]} 28. Ng5+ {[%clk 0:00:28.5]} 28... Kf6 {[%clk 0:02:21.4]} 29. Ne4+
{[%clk 0:00:26.8]} 29... Kf7 {[%clk 0:02:21.5]} 30. Rhh1 {[%clk 0:00:26.5]}
30... Rxd1+ {[%clk 0:02:18.9]} 31. Rxd1 {[%clk 0:00:26.2]} 31... Bb2+ {[%clk
0:02:19.7]} 32. Kxb2 {[%clk 0:00:26.7]} 32... Rxd1 {[%clk 0:02:20.6]} 33. Kc3
{[%clk 0:00:24.1]} 33... e5 {[%clk 0:02:18.9]} 34. Kc4 {[%clk 0:00:23.6]} 34...
Rg1 {[%clk 0:02:14.9]} 35. g4 {[%clk 0:00:23.5]} 35... Rf1 {[%clk 0:02:14.3]}
36. Kb5 {[%clk 0:00:23.1]} 36... Kg7 {[%clk 0:02:14.5]} 37. Kxa5 {[%clk
0:00:20.6]} 37... Rxf3 {[%clk 0:02:14.9]} 38. b4 {[%clk 0:00:19.4]} 38... Re3
{[%clk 0:02:15.4]} 39. Nc5 {[%clk 0:00:17.6]} 39... e4 {[%clk 0:02:14.5]} 40. b5
{[%clk 0:00:16.6]} 40... Re1 {[%clk 0:02:14.8]} 41. b6 {[%clk 0:00:16.2]} 41...
e3 {[%clk 0:02:15.5]} 42. b7 {[%clk 0:00:16]} 42... e2 {[%clk 0:02:09.9]} 43.
Nd3 {[%clk 0:00:11.4]} 43... Rb1 {[%clk 0:02:05.8]} 44. Ka6 {[%clk 0:00:10.9]}
44... e5 {[%clk 0:02:06.3]} 45. Ka7 {[%clk 0:00:09.3]} 45... e4 {[%clk
0:02:06.9]} 46. Ne1 {[%clk 0:00:04.3]} 46... Rxe1 {[%clk 0:02:07.1]} 0-1

[Event "Early-Titled-Tuesday-Blitz-February-06-2024"]
[Site "Chess.com"]
[Date "2024.02.06"]
[Round "2"]
[White "ukchessbomber"]
[Black "Arimin1329"]
[Result "0-1"]
[WhiteElo "2647"]
[BlackElo "2423"]
[TimeControl "180+1"]
[EndTime "8:16:20 PST"]
[Termination "Arimin1329 won by resignation"]

1. b3 {[%clk 0:03:00.9]} 1... d5 {[%clk 0:02:59.7]} 2. Bb2 {[%clk 0:03:01.8]}
2... Bf5 {[%clk 0:03:00]} 3. Nf3 {[%clk 0:03:02.7]} 3... e6 {[%clk 0:02:59.5]}
4. e3 {[%clk 0:03:03.6]} 4... Nf6 {[%clk 0:02:58.9]} 5. Bd3 {[%clk 0:03:04.5]}
5... Bxd3 {[%clk 0:02:57.3]} 6. cxd3 {[%clk 0:03:05.4]} 6... Bd6 {[%clk
0:02:57.3]} 7. O-O {[%clk 0:03:05.8]} 7... Nbd7 {[%clk 0:02:57.8]} 8. Nc3 {[%clk
0:03:06.1]} 8... c6 {[%clk 0:02:55.8]} 9. Qe2 {[%clk 0:03:05.7]} 9... e5 {[%clk
0:02:55.8]} 10. Nh4 {[%clk 0:02:59.9]} 10... g6 {[%clk 0:02:49.4]} 11. d4 {[%clk
0:02:59.1]} 11... exd4 {[%clk 0:02:44.8]} 12. exd4+ {[%clk 0:02:32.4]} 12... Kf8
{[%clk 0:02:44]} 13. f4 {[%clk 0:02:30.4]} 13... Qe7 {[%clk 0:02:37.8]} 14. Qf2
{[%clk 0:02:13.3]} 14... Kg7 {[%clk 0:02:23.3]} 15. Rae1 {[%clk 0:02:07.1]}
15... Qd8 {[%clk 0:02:20.3]} 16. Re5 {[%clk 0:01:32.5]} 16... Re8 {[%clk
0:02:04.5]} 17. Qg3 {[%clk 0:01:28.6]} 17... Kh8 {[%clk 0:01:53.6]} 18. Rfe1
{[%clk 0:01:10.7]} 18... Nxe5 {[%clk 0:01:38.5]} 19. dxe5 {[%clk 0:01:06.1]}
19... Nh5 {[%clk 0:01:36.3]} 20. Qf2 {[%clk 0:00:30.2]} 20... Be7 {[%clk
0:01:36.2]} 21. Nf3 {[%clk 0:00:20.7]} 21... Nxf4 {[%clk 0:01:34.3]} 22. e6
{[%clk 0:00:16.9]} 22... f6 {[%clk 0:01:26.9]} 23. Qd4 {[%clk 0:00:13.9]} 23...
Qd6 {[%clk 0:01:21.3]} 24. Ng5 {[%clk 0:00:07.7]} 24... Qc5 {[%clk 0:01:16.4]}
25. Nf7+ {[%clk 0:00:07]} 25... Kg7 {[%clk 0:01:16.2]} 26. Na4 {[%clk
0:00:05.7]} 26... Qxd4+ {[%clk 0:01:11.1]} 27. Bxd4 {[%clk 0:00:06.6]} 27...
Nxe6 {[%clk 0:01:05.6]} 28. Nh6 {[%clk 0:00:05.5]} 28... Nxd4 {[%clk 0:01:02.9]}
0-1